bitfinex/quotes_ETHUSD_20251107
["timestamp","ask_amount","ask_price","bid_price","bid_amount"]
[1762530659416,0.405504,3310.9,3309.3,0.50100031]
[1762530659641,3.21825402,3311.7,3309.6,0.49810178]
[1762530659795,0.71909637,3311.1,3309.6,0.49810178]
[1762530659986,3.02023557,3311.0,3309.6,0.49810178]
[1762530660183,0.71909637,3311.1,3309.6,0.49810178]
[1762530660387,3.01977955,3311.5,3309.6,0.49810178]
[1762530660631,0.1986348,3311.7,3309.6,0.49810178]
[1762530660787,3.02038373,3310.9,3310.1,3.0210371]
[1762530661007,0.1986348,3311.7,3310.1,0.30210371]
[1762530661247,3.02142188,3309.7,3309.6,0.49810178]
[1762530661625,2.52354735,3309.2,3309.1,0.005]
[1762530661945,1.665216,3310.4,3309.1,0.005]
[1762530662144,4.2806775,3310.2,3310.1,0.001]
[1762530663333,0.405504,3311.1,3310.1,0.001]
[1762530663534,3.0209655,3310.2,3310.1,0.001]
[1762530663753,3.01859778,3312.8,3310.1,0.49966907]
[1762530663912,3.01976921,3311.6,3310.1,0.49966907]
[1762530664117,3.01987074,3311.4,3310.1,0.49966907]
[1762530664429,3.0209655,3310.2,3310.1,0.49966907]
[1762530665209,0.30197692,3311.5,3310.1,0.49966907]
[1762530665413,5.93125169,3312.5,3310.1,0.49966907]
[1762530665714,3.02014436,3311.1,3311.0,0.49911443]
[1762530665916,4.27985636,3311.1,3311.0,0.49911443]
[1762530666117,3.0209655,3310.2,3310.1,0.001]
[1762530666354,0.1504,3310.2,3310.1,0.001]
[1762530666653,0.1504,3310.5,3310.1,0.001]
[1762530667019,3.02041318,3310.9,3310.1,0.001]
[1762530667215,3.02052938,3310.7,3310.3,0.1504]
[1762530667460,3.17085108,3310.8,3310.3,0.1504]
[1762530667819,3.02050925,3310.7,3310.6,0.49822782]
[1762530668253,3.02032741,3310.9,3310.6,0.49822782]
[1762530668475,3.02050925,3310.7,3310.6,0.49822782]
[1762530668653,0.005,3312.9,3310.6,0.49822782]
[1762530668654,0.005,3311.9,3310.6,0.49822782]
[1762530668837,0.1504,3311.1,3310.7,0.1504]
[1762530669136,0.005,3311.9,3311.0,3.02022073]
[1762530669456,0.1554,3311.9,3311.3,0.1504]
[1762530669646,0.005,3311.9,3310.6,0.49822782]
[1762530669844,0.005,3311.9,3311.2,0.5018804]
[1762530670044,0.005,3311.9,3311.3,3.01995698]
[1762530670232,0.005,3311.9,3311.8,3.019506]
[1762530670965,0.005,3311.9,3311.8,3.42501]
[1762530671173,0.005,3311.9,3311.8,3.019506]
[1762530671478,0.005,3311.9,3311.4,0.35218374]
[1762530671620,0.005,3311.9,3311.2,0.5018804]
[1762530671822,0.005,3311.9,3311.8,3.019506]
[1762530672806,0.005,3311.9,3311.8,3.04970106]
[1762530672963,0.005,3311.9,3311.8,3.019506]
[1762530673454,0.005,3312.9,3311.8,3.019506]
[1762530673660,0.005,3312.9,3311.9,0.3019506]
[1762530673964,0.005,3312.9,3312.4,0.49822283]
[1762530674275,3.01886792,3312.5,3312.4,0.49822283]
[1762530674471,3.01877965,3312.6,3312.4,0.49822283]
[1762530674673,0.005,3312.9,3312.4,0.49822283]
[1762530675093,0.005,3312.9,3312.8,3.01859454]
[1762530675267,0.005,3312.9,3312.8,3.62232367]
[1762530675695,0.005,3312.9,3312.8,3.65250961]
[1762530675863,0.005,3312.9,3312.8,3.62232367]
[1762530676065,3.01681888,3314.8,3312.9,0.4940019]
[1762530676291,3.01700488,3314.6,3312.9,0.4940019]
[1762530676624,1.259712,3314.4,3313.1,3.01826604]
[1762530676901,3.01786861,3313.6,3312.9,0.4940019]
[1762530677202,1.259712,3314.0,3312.9,0.4940019]
[1762530677363,0.4332165,3313.9,3312.9,0.4940019]
[1762530677565,0.005,3313.9,3312.9,0.4940019]
[1762530677766,3.01834107,3313.1,3312.9,0.4940019]
[1762530678015,3.01768362,3313.8,3312.6,3.52070079]
[1762530678296,3.01810818,3313.4,3312.7,3.37075014]
[1762530678525,0.005,3313.9,3312.7,0.35207008]
[1762530678695,0.005,3313.9,3313.8,3.01768362]
[1762530678896,0.005,3313.9,3312.8,0.03018594]
[1762530678897,0.005,3313.9,3313.0,3.42391631]
[1762530679061,0.005,3313.9,3313.8,3.01768362]
[1762530679260,0.005,3313.9,3313.8,0.60354678]
[1762530679498,0.005,3313.9,3313.8,3.01768362]
[1762530679712,0.005,3313.9,3313.8,3.16808362]
[1762530680009,3.02259256,3313.9,3313.8,0.1504]
[1762530680162,0.005,3313.9,3311.3,1.259712]
[1762530680364,0.005,3313.9,3312.0,1.665216]
[1762530680562,0.007,3313.9,3312.5,0.405504]
[1762530680768,0.007,3313.9,3313.3,3.01812499]
[1762530680963,0.007,3313.9,3312.1,0.405504]
[1762530681191,0.007,3313.9,3312.3,0.405504]
[1762530681391,0.007,3313.9,3312.2,0.405504]
[1762530681595,0.007,3313.9,3312.1,1.259712]
[1762530681596,0.007,3313.9,3312.1,0.405504]
[1762530681783,3.01768362,3313.8,3311.3,3.01987576]
[1762530681994,0.007,3313.9,3311.1,0.005]
[1762530682179,3.01795684,3313.5,3312.5,0.50142493]
[1762530682504,3.01877679,3312.6,3312.5,0.50142493]
[1762530682662,3.92438983,3312.6,3312.5,0.50142493]
[1762530682869,5.18410183,3312.6,3312.5,0.50142493]
[1762530683103,1.50921818,3315.5,3312.5,0.50142493]
[1762530683403,3.01877679,3312.6,3312.5,0.50142493]
[1762530683603,0.405504,3313.6,3312.5,0.50142493]
[1762530683814,1.259712,3313.4,3312.5,0.50142493]
[1762530683997,1.266712,3313.9,3312.5,0.50142493]
[1762530684308,0.007,3313.9,3313.5,3.01794252]
[1762530684510,0.007,3313.9,3313.2,0.50019889]
[1762530684670,0.007,3313.9,3313.6,3.0177862]
[1762530684869,0.007,3313.9,3313.8,3.01768362]
[1762530685072,0.007,3313.9,3313.8,3.31945198]
[1762530686306,0.002,3314.3,3314.2,3.01731941]
[1762530686709,0.002,3314.3,3313.9,0.49104]
[1762530687082,0.002,3314.3,3314.2,3.01731941]
[1762530687907,0.002,3314.3,3313.9,0.49104]
[1762530688295,0.002,3314.3,3312.6,1.259712]
[1762530688296,0.002,3314.3,3313.4,0.50203885]
[1762530688498,0.002,3314.3,3313.8,3.01759905]
[1762530688808,0.002,3314.3,3313.8,3.0176121]
[1762530688995,0.002,3314.3,3314.2,3.01731941]
[1762530689199,0.002,3314.3,3313.8,0.30176121]
[1762530689505,3.01925144,3314.3,3313.6,3.01780393]
[1762530689709,3.01747373,3314.1,3313.4,0.50203885]
[1762530689917,0.002,3314.3,3313.4,0.50203885]
[1762530690226,3.01795684,3313.5,3313.4,0.50203885]
[1762530690375,3.01850342,3312.9,3312.8,0.50001008]
[1762530690776,3.01914135,3312.2,3311.1,0.005]
[1762530691843,1.259712,3313.4,3311.1,0.005]
[1762530692047,1.259712,3312.7,3311.9,3.01940818]
[1762530692359,0.002,3314.3,3312.2,3.01914135]
[1762530692570,0.002,3314.3,3311.2,5.93125169]
[1762530692571,0.002,3314.3,3312.6,3.01874668]
[1762530692844,0.002,3314.3,3312.7,0.30187467]
[1762530693049,0.002,3314.3,3313.3,3.01809714]
[1762530693350,0.002,3314.3,3313.3,3.01812545]
[1762530693649,3.01731941,3314.2,3312.4,0.5004552]
[1762530693809,3.01775909,3313.8,3312.4,0.5004552]
[1762530694010,3.01787586,3313.6,3312.9,3.01848129]
[1762530694229,3.01803349,3313.5,3312.5,0.35194568]
[1762530694445,3.01745456,3314.1,3313.4,0.50007587]
[1762530694743,3.01795684,3313.5,3313.4,0.50007587]
[1762530694964,0.002,3314.3,3313.4,0.50007587]
[1762530695170,3.017663,3313.9,3313.4,0.50007587]
[1762530695471,0.002,3314.3,3313.5,0.03017956]
[1762530695656,0.002,3314.3,3314.0,3.01741203]
[1762530695867,0.002,3314.3,3313.4,0.50007587]
[1762530696034,0.002,3314.3,3313.5,3.01795684]
[1762530696239,0.0012,3314.3,3313.4,0.50007587]
[1762530696535,0.0012,3314.3,3313.7,0.50206169]
[1762530696782,0.0012,3314.3,3314.2,3.01731941]
[1762530696951,0.0012,3314.3,3314.2,3.62079381]
[1762530697471,0.0012,3314.3,3313.7,0.50206169]
[1762530697645,0.0012,3314.3,3314.2,3.01731941]
[1762530697972,0.0012,3314.3,3313.7,0.50206169]
[1762530698162,0.0012,3314.3,3314.2,3.01731941]
[1762530698532,0.005,3314.9,3314.3,3.5177202]
[1762530698854,0.005,3314.9,3314.3,3.51772581]
[1762530699060,3.01686834,3314.7,3314.3,0.50051598]
[1762530699231,0.005,3314.9,3314.3,0.50051598]
[1762530699436,3.02171361,3314.9,3314.3,0.50051598]
[1762530699682,0.005,3314.9,3314.3,3.51773875]
[1762530699888,0.005,3314.9,3314.5,3.01704631]
[1762530699889,0.002,3314.6,3314.5,3.01704631]
[1762530700180,0.002,3314.6,3314.5,0.1504]
[1762530700537,0.002,3314.6,3314.3,0.50051598]
[1762530700760,0.002,3314.6,3314.2,0.1504]
[1762530701192,3.01731941,3314.2,3314.1,0.49965905]
[1762530701340,0.61849366,3314.2,3314.1,0.49965905]
[1762530701534,0.1504,3314.3,3314.1,0.49965905]
[1762530701849,3.01731941,3314.2,3314.1,0.49965905]
[1762530702478,0.1504,3314.3,3314.1,0.49965905]
[1762530702683,0.002,3314.6,3313.8,0.50199178]
[1762530702882,0.002,3314.6,3314.3,3.01714637]
[1762530703200,3.01717034,3314.4,3313.8,0.50199178]
[1762530703476,0.002,3314.6,3313.8,0.50199178]
[1762530703644,3.01704631,3314.5,3313.8,0.50199178]
[1762530703973,0.002,3314.6,3313.8,0.50199178]
[1762530704336,3.01757547,3314.0,3313.8,0.50199178]
[1762530704541,3.01759256,3313.9,3313.8,0.50199178]
[1762530704742,2.51701807,3313.5,3313.4,0.001]
[1762530705070,3.01792585,3313.6,3313.4,0.001]
[1762530705271,3.01795684,3313.5,3313.4,0.001]
[1762530705980,4.27766884,3313.5,3313.4,0.001]
[1762530706180,5.00722074,3313.5,3313.4,0.001]
[1762530706734,5.00722074,3313.5,3313.4,0.50307552]
[1762530708485,5.00722074,3313.5,3313.4,1e-08]
[1762530708780,3.01795684,3313.5,3313.4,1e-08]
[1762530708941,3.01813431,3313.4,3313.3,0.49891364]
[1762530709337,1.259712,3314.3,3313.3,0.49891364]
[1762530709566,3.01804792,3313.4,3313.3,0.49891364]
[1762530710492,4.27775992,3313.4,3313.0,0.001]
[1762530710691,4.2780332,3313.1,3313.0,0.001]
[1762530710854,3.77920345,3313.1,3313.0,0.001]
[1762530711481,4.18470745,3313.1,3313.0,0.001]
[1762530711896,3.77920345,3313.1,3313.0,0.001]
[1762530712980,3.4238252,3313.1,3313.0,0.001]
[1762530713160,5.09098677,3313.1,3313.0,0.001]
[1762530713862,5.49649077,3313.1,3313.0,0.001]
[1762530715194,4.9955227,3313.1,3313.0,0.001]
[1762530715397,3.02005315,3311.2,3310.4,3.02078284]
[1762530715696,3.02005315,3311.2,3310.2,3.02095182]
[1762530715697,3.02005315,3311.2,3310.2,3.02091524]
[1762530715899,3.02005315,3311.2,3310.5,3.02069088]
[1762530716400,4.27976515,3311.2,3309.7,0.001]
[1762530716593,4.70774167,3311.2,3310.1,3.02702545]
[1762530716763,4.27976515,3311.2,3310.1,3.02702545]
[1762530716958,4.27976515,3311.2,3311.1,0.50592951]
[1762530717159,3.0190502,3312.3,3311.1,0.50592951]
[1762530717369,3.42391631,3313.0,3311.1,0.50592951]
[1762530717705,3.0183212,3313.1,3313.0,0.001]
[1762530717896,4.2780332,3313.1,3313.0,0.001]
[1762530718495,4.6835372,3313.1,3313.0,0.001]
[1762530718676,5.51623904,3313.1,3313.0,0.001]
[1762530718873,5.51543904,3313.1,3313.0,0.001]
[1762530719108,5.01609768,3313.1,3313.0,0.001]
[1762530719770,4.61059368,3313.1,3313.0,0.001]
[1762530720771,3.35088168,3313.1,3313.0,0.001]
[1762530720971,3.02005079,3313.4,3313.0,0.001]
[1762530721167,3.02005079,3313.4,3313.2,0.5022533]
[1762530721168,0.002,3313.4,3313.2,0.5022533]
[1762530721603,3.01813901,3313.3,3313.2,0.5022533]
[1762530721925,3.0183212,3313.1,3313.0,0.001]
[1762530722234,4.2780332,3313.1,3313.0,0.001]
[1762530722806,0.002,3313.4,3313.0,0.001]
[1762530723007,0.002,3313.4,3313.1,3.01826257]
[1762530723196,0.002,3313.4,3313.2,0.49799977]
[1762530724335,3.01813901,3313.3,3313.2,0.49799977]
[1762530725246,3.01813901,3313.3,3313.0,0.001]
[1762530725247,3.16869215,3313.2,3313.0,0.001]
[1762530725445,0.1504,3313.2,3313.0,0.001]
[1762530725744,3.0183212,3313.1,3313.0,0.001]
[1762530726334,4.2780332,3313.1,3313.0,0.001]
[1762530727247,3.77970238,3313.1,3313.0,0.001]
[1762530727433,4.18520638,3313.1,3313.0,0.001]
[1762530727637,3.42418966,3312.7,3312.6,0.001]
[1762530728009,3.02005315,3311.2,3308.5,3.02245229]
[1762530728214,3.02005315,3311.2,3310.1,3.02704985]
[1762530728411,0.405504,3312.0,3310.6,3.02058241]
[1762530728412,3.01999006,3311.3,3310.6,3.02058241]
[1762530728696,3.02005315,3311.2,3310.1,0.006]
[1762530729014,0.405504,3312.1,3310.1,0.006]
[1762530729015,3.77979261,3313.1,3310.2,0.03020965]
[1762530729217,1.259712,3313.0,3311.7,0.49804491]
[1762530729518,3.019506,3311.8,3311.7,0.49804491]
[1762530730266,3.01868566,3312.7,3311.7,0.49804491]
[1762530730572,3.01912294,3312.3,3311.7,0.49804491]
[1762530730870,1.259712,3312.8,3311.7,0.49804491]
[1762530730871,3.01813901,3313.3,3311.7,0.49804491]
[1762530731019,3.01918138,3312.2,3311.7,0.49804491]
[1762530731223,3.01813901,3313.3,3311.7,3.01959194]
[1762530731426,3.01914135,3312.2,3312.1,0.50076026]
[1762530731916,3.01895906,3312.4,3312.1,0.50076026]
[1762530732129,3.42026593,3313.2,3312.1,0.50076026]
[1762530732356,3.02263823,3313.9,3312.1,3.51992179]
[1762530732357,3.01869705,3312.7,3312.1,3.51992179]
[1762530732568,3.01877783,3312.6,3312.1,0.50076026]
[1762530732791,3.01914135,3312.2,3312.1,0.50076026]
[1762530733138,3.01896483,3312.4,3312.1,0.50076026]
[1762530733372,3.0183212,3313.1,3312.1,0.50086435]
[1762530733676,3.01841231,3313.0,3312.1,0.50086435]
[1762530733851,3.01914135,3312.2,3312.1,0.50086435]
[1762530734050,1.259712,3313.2,3312.1,3.52003312]
[1762530734365,3.01783293,3313.7,3312.1,0.50086435]
[1762530734531,0.002,3313.8,3312.2,3.01906454]
[1762530734532,3.01851001,3312.9,3312.2,3.01906454]
[1762530734736,3.01860674,3312.8,3312.2,3.0191292]
[1762530734960,3.01971241,3313.8,3312.2,0.35199936]
[1762530735161,3.01856263,3312.9,3312.2,3.01911019]
[1762530735361,0.002,3313.8,3312.7,0.50106588]
[1762530735558,0.002,3313.8,3313.3,3.01813901]
[1762530735859,0.002,3313.8,3313.1,3.01823915]
[1762530735860,0.1504,3313.7,3313.1,0.1504]
[1762530736263,0.1504,3313.7,3312.7,0.50106588]
[1762530736462,0.002,3313.8,3313.3,3.01813901]
[1762530736463,0.1565625,3313.4,3313.3,3.01813901]
[1762530736701,1e-08,3313.9,3313.8,4.68289962]
[1762530736870,1e-08,3313.9,3313.8,4.86347645]
[1762530737059,1e-08,3313.9,3313.8,4.83329962]
[1762530737466,0.1504,3315.7,3313.9,1.76155666]
[1762530737663,0.005,3315.9,3314.8,3.01677325]
[1762530737863,3.16627176,3315.8,3314.8,3.16717325]
[1762530738072,3.16633596,3315.8,3314.8,3.16717325]
[1762530738285,0.005,3315.9,3314.8,0.1504]
[1762530738497,3.01643601,3315.2,3314.8,0.1504]
[1762530738696,0.1504,3315.6,3314.8,3.16717325]
[1762530739001,1.259712,3315.6,3314.1,3.01734031]
[1762530739300,1.259712,3315.6,3313.7,3.01776711]
[1762530739301,3.01720154,3314.4,3313.7,3.01776711]
[1762530739501,3.01677325,3314.8,3314.6,0.50048844]
[1762530739704,1.259712,3315.6,3314.6,0.50048844]
[1762530740020,3.01686427,3314.7,3314.6,0.50048844]
[1762530740218,0.005,3314.9,3314.6,0.50048844]
[1762530740622,3.01686427,3314.7,3314.6,0.50048844]
[1762530740825,3.02174885,3314.9,3314.6,0.50048844]
[1762530741185,0.005,3314.9,3314.6,0.50048844]
[1762530741389,0.005,3314.9,3314.8,3.01677325]
[1762530741616,3.0154646,3316.3,3314.9,3.50931796]
[1762530741617,3.0160243,3315.7,3314.9,3.50931796]
[1762530741814,0.0042,3315.9,3314.9,0.49272006]
[1762530742016,3.0162601,3315.4,3314.9,0.49272006]
[1762530742225,3.01659125,3315.0,3314.9,0.49272006]
[1762530742789,1.259712,3314.9,3312.2,3.01914135]
[1762530742988,1.665216,3314.8,3312.3,0.30251413]
[1762530743251,1.665216,3314.3,3311.7,0.001]
[1762530743388,3.01914135,3312.2,3311.7,0.001]
[1762530743587,3.01914135,3312.2,3312.1,0.50624096]
[1762530743903,3.01414135,3312.2,3312.1,0.50624096]
[1762530744104,4.27385335,3312.2,3312.1,0.50624096]
[1762530745093,3.01414135,3312.2,3312.1,0.50624096]
[1762530745747,3.01414135,3312.2,3312.1,0.50583068]
[1762530745958,3.01414135,3312.2,3311.7,0.001]
[1762530745959,4.279218,3311.8,3311.7,0.001]
[1762530746100,4.684722,3311.8,3311.7,0.001]
[1762530746443,0.88415084,3312.2,3307.9,0.59385214]
[1762530746642,1.259712,3310.9,3309.2,3.02178808]
[1762530746841,1.259712,3311.5,3309.9,3.02115397]
[1762530747044,1.259712,3311.5,3309.4,3.02263337]
[1762530747341,0.405504,3312.6,3310.6,3.02053309]
[1762530747596,1.259712,3311.9,3309.9,3.02121908]
[1762530747874,4.27985636,3311.1,3311.0,0.49983675]
[1762530748463,0.61864793,3313.4,3311.0,0.49983675]
[1762530748644,1.259712,3312.1,3311.0,0.49983675]
[1762530748845,0.1504,3311.1,3311.0,0.49983675]
[1762530749045,0.1504,3311.2,3311.0,0.85184561]
[1762530749450,0.1504,3311.6,3311.0,0.65023675]
[1762530749847,3.01978349,3311.5,3311.3,0.50098193]
[1762530750070,3.17011207,3311.6,3311.3,0.50098193]
[1762530750275,3.01979405,3311.5,3311.3,0.50098193]
[1762530750572,3.0195714,3311.8,3311.3,0.50098193]
[1762530750736,0.1504,3311.5,3311.3,0.50098193]
[1762530750938,0.005,3312.9,3311.7,3.01952894]
[1762530751248,0.005,3312.9,3311.8,0.30195289]
[1762530751447,0.005,3312.9,3311.3,0.50098193]
[1762530751448,3.01960896,3311.7,3311.3,0.50098193]
[1762530751647,1.259712,3312.8,3311.3,0.50098193]
[1762530751648,0.410504,3312.9,3311.3,0.50098193]
[1762530751848,0.005,3312.9,3310.9,0.49843617]
[1762530752064,3.02354787,3312.9,3311.5,3.01968894]
[1762530752269,3.01947571,3311.9,3310.9,3.51875562]
[1762530752579,0.405504,3312.6,3310.9,0.49843617]
[1762530752765,1.259712,3312.3,3310.9,0.49843617]
[1762530753070,3.0190502,3312.3,3310.9,0.49843617]
[1762530753370,0.34245542,3312.2,3310.9,0.49843617]
[1762530753573,3.02003634,3311.3,3310.9,0.49843617]
[1762530753759,1.665216,3312.4,3310.9,0.49843617]
[1762530753961,3.0190502,3312.3,3310.8,0.50217661]
[1762530754179,3.01932367,3312.0,3310.8,0.50217661]
[1762530754366,3.0201411,3311.2,3310.8,0.50217661]
[1762530754756,3.01993339,3311.4,3310.8,0.50217661]
[1762530754757,3.02015489,3311.1,3310.8,0.50217661]
[1762530755082,4.28003879,3310.9,3310.8,0.50217661]
[1762530755286,1.259712,3310.9,3310.8,0.50217661]
[1762530755586,3.02016165,3311.1,3310.8,0.50217661]
[1762530755781,0.38526028,3312.0,3310.8,0.50217661]
[1762530755995,3.02041802,3310.8,3310.7,0.50231881]
[1762530756362,1.259712,3311.6,3310.7,0.50231881]
[1762530756563,3.02041802,3310.8,3310.7,0.50231881]
[1762530757387,1.259712,3311.8,3310.7,0.50231881]
[1762530757699,3.0201108,3311.2,3310.7,0.50231881]
[1762530757855,3.02003907,3311.3,3310.7,0.50231881]
[1762530758057,3.01881053,3312.6,3310.6,3.02157503]
[1762530758058,3.01939787,3312.0,3310.6,0.001]
[1762530758252,1.259712,3311.9,3310.6,0.001]
[1762530758475,0.405504,3312.5,3310.6,0.001]
[1762530758476,1.68762299,3311.8,3310.6,0.30317198]
[1762530758651,4.27928367,3311.8,3310.6,0.001]
[1762530758853,3.02050925,3310.7,3310.6,0.001]
[1762530759054,1.259712,3311.2,3310.6,0.001]
[1762530759252,0.005,3312.9,3310.6,3.02156483]
[1762530759253,3.01977149,3311.6,3310.6,3.02156483]
[1762530759489,3.02358069,3312.9,3310.9,3.02027215]
[1762530759801,0.005,3312.9,3310.6,0.031206]
[1762530759964,3.01968258,3311.7,3311.3,0.49895025]
[1762530760177,3.01987074,3311.4,3311.3,0.49895025]
[1762530760563,1.259712,3312.7,3311.3,0.49895025]
[1762530760767,3.01838903,3313.1,3311.3,0.49895025]
[1762530761019,0.1504,3311.6,3311.5,3.01977955]
[1762530761217,0.1504,3312.1,3311.6,3.01960416]
[1762530761398,0.1504,3312.1,3311.5,0.1504]
[1762530761569,0.1504,3311.6,3311.3,0.49895025]
[1762530761770,0.005,3312.9,3311.3,0.49895025]
[1762530762016,0.005,3312.9,3312.8,3.01859454]
[1762530762221,0.005,3312.9,3312.8,0.60372914]
[1762530762503,0.005,3312.9,3312.0,0.49849224]
[1762530762667,0.005,3312.9,3312.6,3.01871606]
[1762530762869,0.005,3312.9,3312.8,3.01859454]
[1762530763118,0.005,3312.9,3312.0,0.49849224]
[1762530763667,0.005,3312.9,3312.8,3.01859454]
[1762530763870,0.005,3313.9,3312.9,3.01850342]
[1762530764069,0.005,3313.9,3313.4,0.50243765]
[1762530764273,3.01792498,3313.6,3313.4,0.50243765]
[1762530764469,0.005,3313.9,3313.4,0.50243765]
[1762530764685,0.0042,3313.9,3313.4,3.52047196]
[1762530764884,0.0042,3313.9,3313.5,3.36999545]
[1762530765110,0.0042,3313.9,3313.8,3.01768362]
[1762530766268,0.007,3314.9,3313.9,0.4956222]
[1762530766505,0.007,3314.9,3314.8,3.01677325]
[1762530766669,0.007,3314.9,3314.0,0.03017501]
[1762530766670,0.007,3314.9,3314.1,3.01734908]
[1762530766872,0.007,3314.9,3314.2,0.30173491]
[1762530767068,0.007,3314.9,3313.9,0.4956222]
[1762530767369,0.007,3314.9,3314.4,3.0170556]
[1762530767597,0.007,3314.9,3313.9,0.4956222]
[1762530767801,0.007,3314.9,3314.4,3.01706386]
[1762530767975,0.007,3314.9,3314.5,3.016975]
[1762530768176,0.007,3314.9,3314.7,0.49770154]
[1762530768473,3.01685896,3314.8,3314.7,0.49770154]
[1762530769019,4.27657096,3314.8,3314.7,0.49770154]
[1762530770117,3.01685896,3314.8,3314.7,0.49770154]
[1762530770318,3.01698193,3314.6,3314.3,0.49785963]
[1762530770490,3.01705138,3314.5,3314.3,0.49785963]
[1762530771416,0.007,3314.9,3314.3,0.49785963]
[1762530771936,3.01713734,3314.4,3314.3,0.49785963]
[1762530772133,0.1504,3314.5,3314.3,0.49785963]
[1762530772284,3.16744779,3314.5,3314.2,0.4983088]
[1762530772488,3.01722837,3314.3,3314.2,0.4983088]
[1762530772715,0.1504,3314.5,3314.2,0.4983088]
[1762530773125,3.0171442,3314.4,3314.2,0.4983088]
[1762530773439,0.1504,3314.3,3314.2,0.4983088]
[1762530773722,3.16762837,3314.3,3314.2,0.4983088]
[1762530773884,3.78610405,3314.3,3314.2,0.4983088]
[1762530774290,3.16762837,3314.3,3313.7,0.1504]
[1762530774504,3.16762837,3314.3,3314.0,0.49842054]
[1762530774727,3.01698538,3314.6,3314.0,0.49842054]
[1762530775026,0.1504,3314.5,3314.0,0.64882054]
[1762530775542,3.16744851,3314.5,3314.0,0.64882054]
[1762530775687,0.1504,3314.5,3314.0,0.64882054]
[1762530776114,0.002,3314.8,3314.7,3.01686427]
[1762530776428,0.007,3314.9,3314.8,3.51243899]
[1762530776925,0.007,3314.9,3314.8,0.49566574]
[1762530777316,3.02368225,3314.9,3314.8,0.49566574]
[1762530777631,3.17408225,3314.9,3314.8,0.49566574]
[1762530778235,3.01741045,3314.1,3314.0,0.1504]
[1762530778435,3.01829517,3313.2,3313.1,0.50007009]
[1762530778989,0.1504,3313.2,3313.1,0.50007009]
[1762530779418,3.1686301,3313.2,3313.1,0.50007009]
[1762530779599,0.1504,3313.2,3313.1,0.50007009]
[1762530779802,1.259712,3314.5,3313.1,0.50007009]
[1762530780029,3.16836883,3313.5,3313.1,0.50007009]
[1762530780222,0.1504,3313.5,3313.1,0.50007009]
[1762530780526,2.51848617,3313.2,3312.4,3.01894729]
[1762530780729,2.51848617,3313.2,3312.1,3.02416744]
[1762530780730,0.1504,3313.1,3312.6,0.1504]
[1762530781029,3.16872259,3313.1,3312.6,0.1504]
[1762530781231,0.1504,3313.1,3312.7,0.03018685]
[1762530781431,0.412504,3314.9,3312.2,3.01914135]
[1762530781631,0.1504,3313.9,3313.3,0.1504]
[1762530781818,0.1504,3313.9,3313.4,3.01803841]
[1762530782041,3.01591377,3315.8,3313.8,3.01766986]
[1762530782198,0.1504,3314.4,3313.8,0.1504]
[1762530782523,0.1504,3314.8,3314.3,3.0172143]
[1762530782709,3.0236972,3314.9,3314.4,3.01705583]
[1762530782710,0.007,3314.9,3314.4,3.01705583]
[1762530783031,0.007,3314.9,3314.5,0.31674558]
[1762530783208,0.007,3314.9,3314.6,3.01689203]
[1762530783406,0.007,3314.9,3314.5,3.01701663]
[1762530783706,0.007,3314.9,3314.1,0.50235643]
[1762530784224,3.02368265,3314.9,3314.1,3.51971082]
[1762530784435,0.30936827,3314.9,3314.1,0.50235643]
[1762530784609,0.30936827,3314.9,3312.1,0.005]
[1762530784610,3.0175015,3314.0,3313.9,0.49833119]
[1762530785358,1.259712,3314.6,3313.9,0.49833119]
[1762530785559,3.0175015,3314.0,3313.9,0.49833119]
[1762530785847,1.259712,3314.6,3313.9,0.49833119]
[1762530786007,0.42765968,3314.6,3313.9,0.49833119]
[1762530786203,1.259712,3314.8,3313.9,0.49833119]
[1762530786409,0.007,3314.9,3313.9,0.49833119]
[1762530786610,2.51745504,3314.0,3312.4,0.405504]
[1762530786805,2.51745504,3314.0,3313.3,3.01812217]
[1762530787144,2.51745504,3314.0,3312.5,0.46842072]
[1762530787145,3.01765426,3313.9,3312.5,0.46842072]
[1762530787546,0.007,3314.9,3312.6,3.01877679]
[1762530787748,3.01751203,3314.0,3312.5,0.46842072]
[1762530787915,1.259712,3314.7,3313.1,3.01823524]
[1762530788112,3.01704631,3314.5,3313.1,0.30182352]
[1762530788347,1.259712,3314.6,3312.5,0.46842072]
[1762530788655,3.01848069,3313.0,3312.1,0.005]
[1762530788810,3.01887345,3312.5,3312.1,0.005]
[1762530789149,3.01841872,3313.0,3312.1,0.005]
[1762530789320,3.01786576,3313.6,3312.1,0.005]
[1762530789524,0.70747487,3314.0,3312.1,0.005]
[1762530789723,1.259712,3312.9,3312.1,0.005]
[1762530790242,3.01914135,3312.2,3312.1,0.005]
[1762530790843,1.259712,3313.1,3312.1,0.50427518]
[1762530791008,1.259712,3312.9,3312.1,0.50427518]
[1762530791209,3.01914135,3312.2,3312.1,0.50427518]
[1762530791409,3.62295961,3312.2,3312.1,0.50427518]
[1762530791650,1.259712,3312.5,3312.1,0.50527518]
[1762530791861,1.259712,3312.1,3311.1,0.005]
[1762530792023,7.07474867,3312.7,3311.1,3.0251388]
[1762530792230,4.27851347,3312.6,3311.7,0.001]
[1762530792425,3.01886792,3312.5,3311.7,0.001]
[1762530792639,3.019506,3311.8,3311.7,0.001]
[1762530792843,2.5204687,3311.8,3311.7,0.001]
[1762530793070,3.7801807,3311.8,3311.7,0.001]
[1762530793365,4.1856847,3311.8,3311.7,0.001]
[1762530793568,4.90619326,3311.8,3311.7,0.001]
[1762530794240,4.50068926,3311.8,3311.7,0.001]
[1762530794445,1.259712,3311.8,3311.7,0.001]
[1762530794757,4.279218,3311.8,3311.7,0.001]
[1762530795073,3.77693972,3311.8,3311.7,0.001]
[1762530795450,3.01928971,3312.1,3311.7,0.001]
[1762530795649,3.019506,3311.8,3311.7,0.001]
[1762530795849,3.01944579,3311.9,3311.7,0.001]
[1762530796161,3.72601111,3312.9,3311.7,0.001]
[1762530796366,3.01868566,3312.7,3311.7,0.001]
[1762530796539,0.70747487,3312.9,3311.7,0.001]
[1762530796738,3.019506,3311.8,3311.7,0.001]
[1762530796982,3.01939448,3312.0,3311.7,0.001]